Workbook

Sheet Budget
C1: Jan. | D1: Feb. | E1: March | F1: April | G1: May | H1: June | I1: July | J1: Aug | K1: Sept. | L1: Oct. | M1: Nov. | N1: Dec. | O1: Total
A2: Projected HOA Fee Monthly Income | B2: $325*155 | C2: 50375 | D2: 50375 | E2: 50375 | F2: 50375 | G2: 50375 | H2: 50375 | I2: 50375 | J2: 50375 | K2: 50375 | L2: 50375 | M2: 50375 | N2: 50375 | O2: =SUM(C2:N2) -> 604500
A3: 5 w/ Board member credit | B3: $162.50*5 | C3: 812.5 | D3: 812.5 | E3: 812.5 | F3: 812.5 | G3: 812.5 | H3: 812.5 | I3: 812.5 | J3: 812.5 | K3: 812.5 | L3: 812.5 | M3: 812.5 | N3: 812.5 | O3: 9750
B4: Actual | C4: 0 | D4: 0 | E4: 0 | F4: 0 | G4: 0 | H4: 0 | I4: 0 | J4: 0 | K4: 0 | L4: 0 | M4: 0 | N4: 0 | O4: 0
B5: Variance | C5: =+C2+C3-C4 -> 51187.5 | D5: 51187.5 | E5: 51187.5 | F5: 51187.5 | G5: 51187.5 | H5: 51187.5 | I5: 51187.5 | J5: 51187.5 | K5: 51187.5 | L5: 51187.5 | M5: 51187.5 | N5: 51187.5 | O5: 614250
A7: Parking Committee Credits | B7: Budget | C7: -165 | D7: -165 | E7: -165 | F7: -165 | G7: -165 | H7: -165 | I7: -165 | J7: -165 | K7: -165 | L7: -165 | M7: -165 | N7: -165 | O7: =SUM(C7:N7) -> -1980
A8: $82.50 credit per committee member | B8: Actual | C8: 0 | D8: 0 | E8: 0 | F8: 0 | G8: 0 | H8: 0 | I8: 0 | J8: 0 | K8: 0 | L8: 0 | M8: 0 | N8: 0 | O8: 0
B9: Variance | C9: =C7-C8 -> -165 | D9: -165 | E9: -165 | F9: -165 | G9: -165 | H9: -165 | I9: -165 | J9: -165 | K9: -165 | L9: -165 | M9: -165 | N9: -165 | O9: =+O7-O8 -> -1980
A11: Fines/violations/assessments | B11: Budget | C11: 0 | D11: 0 | E11: 0 | F11: 0 | G11: 0 | H11: 0 | I11: 0 | J11: 0 | K11: 0 | L11: 0 | M11: 0 | N11: 0 | O11: =SUM(C11:N11) -> 0
B12: Actual | C12: 0 | D12: 0 | E12: 0 | F12: 0 | G12: 0 | H12: 0 | I12: 0 | J12: 0 | K12: 0 | L12: 0 | M12: 0 | N12: 0 | O12: 0
B13: Variance | C13: =+C11-C12 -> 0 | D13: 0 | E13: 0 | F13: 0 | G13: 0 | H13: 0 | I13: 0 | J13: 0 | K13: 0 | L13: 0 | M13: 0 | N13: 0 | O13: 0
A15: Interest/late fees on HOA dues | B15: Budget | C15: 0 | D15: 0 | E15: 0 | F15: 0 | G15: 0 | H15: 0 | I15: 0 | J15: 0 | K15: 0 | L15: 0 | M15: 0 | N15: 0 | O15: =SUM(C15:N15) -> 0
B16: Actual | C16: 0 | D16: 0 | E16: 0 | F16: 0 | G16: 0 | H16: 0 | I16: 0 | J16: 0 | K16: 0 | L16: 0 | M16: 0 | N16: 0 | O16: 0
B17: Variance | C17: =+C15-C16 -> 0 | D17: 0 | E17: 0 | F17: 0 | G17: 0 | H17: 0 | I17: 0 | J17: 0 | K17: 0 | L17: 0 | M17: 0 | N17: 0 | O17: 0
A19: Pool Keys | B19: Budget | C19: 0 | D19: 0 | E19: 0 | F19: 0 | G19: 0 | H19: 0 | I19: 0 | J19: 0 | K19: 0 | L19: 0 | M19: 0 | N19: 0 | O19: =SUM(C19:N19) -> 0
B20: Actual | C20: 0 | D20: 0 | E20: 0 | F20: 0 | G20: 0 | H20: 0 | I20: 0 | J20: 0 | K20: 0 | L20: 0 | M20: 0 | N20: 0 | O20: 0
B21: Variance | C21: =+C19-C20 -> 0 | D21: 0 | E21: 0 | F21: 0 | G21: 0 | H21: 0 | I21: 0 | J21: 0 | K21: 0 | L21: 0 | M21: 0 | N21: 0 | O21: 0
A23: Parking Permit (16 x $35) | B23: Budget | C23: 560 | D23: 560 | E23: 560 | F23: 560 | G23: 560 | H23: 560 | I23: 560 | J23: 560 | K23: 560 | L23: 560 | M23: 560 | N23: 560 | O23: =SUM(C23:N23) -> 6720
A24: $35 per permit | B24: Actual | C24: 0 | D24: 0 | E24: 0 | F24: 0 | G24: 0 | H24: 0 | I24: 0 | J24: 0 | K24: 0 | L24: 0 | M24: 0 | N24: 0 | O24: 0
B25: Variance | C25: =+C23-C24 -> 560 | D25: 560 | E25: 560 | F25: 560 | G25: 560 | H25: 560 | I25: 560 | J25: 560 | K25: 560 | L25: 560 | M25: 560 | N25: 560 | O25: 6720
A27: WYN Initial Fee Assessment | B27: Budget | C27: 0 | D27: 0 | E27: 0 | F27: 0 | G27: 0 | H27: 0 | I27: 0 | J27: 0 | K27: 0 | L27: 0 | M27: 0 | N27: 0 | O27: =SUM(C27:N27) -> 0
A28: AKA General Fund Fee | B28: Actual | C28: 0 | D28: 0 | E28: 0 | F28: 0 | G28: 0 | H28: 0 | I28: 0 | J28: 0 | K28: 0 | L28: 0 | M28: 0 | N28: 0 | O28: 0
B29: Variance | C29: =+C27-C28 -> 0 | D29: 0 | E29: 0 | F29: 0 | G29: 0 | H29: 0 | I29: 0 | J29: 0 | K29: 0 | L29: 0 | M29: 0 | N29: 0 | O29: 0
A31: Budgeted Reserve Funds ($120*160) | B31: Budget | C31: -19200 | D31: -19200 | E31: -19200 | F31: -19200 | G31: -19200 | H31: -19200 | I31: -19200 | J31: -19200 | K31: -19200 | L31: -19200 | M31: -19200 | N31: -19200 | O31: =SUM(C31:N31) -> -230400
A32: Budgeted transfer to reserves | B32: Actual | C32: 0 | D32: 0 | E32: 0 | F32: 0 | G32: 0 | H32: 0 | I32: 0 | J32: 0 | K32: 0 | L32: 0 | M32: 0 | N32: 0 | O32: 0
B33: Variance | C33: =+C31-C32 -> -19200 | D33: -19200 | E33: -19200 | F33: -19200 | G33: -19200 | H33: -19200 | I33: -19200 | J33: -19200 | K33: -19200 | L33: =L31-L32 -> -19200 | M33: -19200 | N33: -19200 | O33: =+O31-O32 -> -230400
B35: Budget | C35: 0 | D35: 0 | E35: 0 | F35: 0 | G35: 0 | H35: 0 | I35: 0 | J35: 0 | K35: 0 | L35: 0 | M35: 0 | N35: 0 | O35: =SUM(C35:N35) -> 0
B36: Actual | C36: 0 | D36: 0 | E36: 0 | F36: 0 | G36: 0 | H36: 0 | I36: 0 | J36: 0 | K36: 0 | L36: 0 | M36: 0 | N36: 0 | O36: 0
B37: Variance | C37: =+C35-C36 -> 0 | D37: 0 | E37: 0 | F37: 0 | G37: 0 | H37: 0 | I37: 0 | J37: 0 | K37: 0 | L37: 0 | M37: 0 | N37: 0 | O37: 0
A39: NON-INCOME---2023 operating account balance | B39: Budget | O39: =C39 ->  | P39: **
A40: bank statement | B40: Actual | C40: 0 | D40: 0 | E40: 0 | F40: 0 | G40: 0 | H40: 0 | I40: 0 | J40: 0 | K40: 0 | L40: 0 | M40: 0 | N40: 0 | O40: =SUM(C40:N40) -> 0
B41: Variance | C41: =+C39-C40 -> 0 | D41: 0 | E41: 0 | F41: 0 | G41: 0 | H41: 0 | I41: 0 | J41: 0 | K41: 0 | L41: 0 | M41: 0 | N41: 0 | O41: 0
A43: Total Budget | C43: =C2+C3+C7+C11+C15+C19+C23+C27+C31+C35+C39 -> 32382.5 | D43: 32382.5 | E43: 32382.5 | F43: 32382.5 | G43: 32382.5 | H43: 32382.5 | I43: 32382.5 | J43: 32382.5 | K43: 32382.5 | L43: 32382.5 | M43: 32382.5 | N43: 32382.5 | O43: =SUM(C43:N43) -> 388590
A44: Total Actual | C44: =C4+C8+C12+C16+C20+C24+C28+C32+C36+C40 -> 0 | D44: 0 | E44: 0 | F44: 0 | G44: 0 | H44: 0 | I44: 0 | J44: 0 | K44: 0 | L44: 0 | M44: 0 | N44: 0 | O44: 0
A45: Total Variance | C45: =+C43-C44 -> 32382.5 | D45: 32382.5 | E45: 32382.5 | F45: 32382.5 | G45: 32382.5 | H45: 32382.5 | I45: 32382.5 | J45: 32382.5 | K45: 32382.5 | L45: 32382.5 | M45: 32382.5 | N45: 32382.5 | O45: 388590
A49: Expenses | C49: Jan. | D49: Feb. | E49: March | F49: April | G49: May | H49: June | I49: July | J49: Aug | K49: Sept. | L49: Oct. | M49: Nov. | N49: Dec. | O49: Total
A50: 4102 - Association Dues | B50: Budget | C50: 0 | D50: 0 | E50: 0 | F50: 0 | G50: 0 | H50: 0 | I50: 0 | J50: 0 | K50: 0 | L50: 0 | M50: 0 | N50: 0 | O50: =SUM(C50:N50) -> 0
B51: Actual | C51: 0 | D51: 0 | E51: 0 | F51: 0 | G51: 0 | H51: 0 | I51: 0 | J51: 0 | K51: 0 | L51: 0 | M51: 0 | N51: 0 | O51: 0
B52: Variance | C52: =C50-C51 -> 0 | D52: 0 | E52: 0 | F52: 0 | G52: 0 | H52: 0 | I52: 0 | J52: 0 | K52: 0 | L52: 0 | M52: 0 | N52: 0 | O52: =+O50-O51 -> 0
A54: 6252 - C&L/D&O/EQ Insurance | B54: Budget | C54: 3910.75 | D54: 3910.75 | E54: 3910.75 | F54: 3910.75 | G54: 3910.75 | H54: 3910.75 | I54: 3910.75 | J54: 3910.75 | K54: 3910.75 | L54: 3910.75 | M54: 3910.75 | N54: 3910.75 | O54: =SUM(C54:N54) -> 46929
B55: Actual | C55: 0 | D55: 0 | E55: 0 | F55: 0 | G55: 0 | H55: 0 | I55: 0 | J55: 0 | K55: 0 | L55: 0 | M55: 0 | N55: 0 | O55: 0
B56: Variance | C56: =C54-C55 -> 3910.75 | D56: =D54-E55 -> 3910.75 | E56: =E54-E55 -> 3910.75 | F56: 3910.75 | G56: 3910.75 | H56: 3910.75 | I56: 3910.75 | J56: 3910.75 | K56: 3910.75 | L56: 3910.75 | M56: 3910.75 | N56: 3910.75 | O56: =+O54-O55 -> 46929
A58: 6254 - Welch/HOA Admin/Office/Meeting expense | B58: Budget | C58: 45 | D58: 45 | E58: 45 | F58: 45 | G58: 45 | H58: 45 | I58: 45 | J58: 45 | K58: 45 | L58: 45 | M58: 45 | N58: 45 | O58: =SUM(C58:N58) -> 540
B59: Actual | C59: 0 | D59: 0 | E59: 0 | F59: 0 | G59: 0 | H59: 0 | I59: 0 | J59: 0 | K59: 0 | L59: 0 | M59: 0 | N59: 0 | O59: 0
B60: Variance | C60: =+C58-C59 -> 45 | D60: 45 | E60: 45 | F60: 45 | G60: 45 | H60: 45 | I60: 45 | J60: 45 | K60: 45 | L60: 45 | M60: 45 | N60: 45 | O60: 540
A62: 6255/6285 - Internet and TV | B62: Budget | C62: 10890.5 | D62: 10890.5 | E62: 10890.5 | F62: 10890.5 | G62: 10890.5 | H62: 10890.5 | I62: 10890.5 | J62: 10890.5 | K62: 10890.5 | L62: 10890.5 | M62: 10890.5 | N62: 10890.5 | O62: =SUM(C62:N62) -> 130686
B63: Actual | C63: 0 | D63: 0 | E63: 0 | F63: 0 | G63: 0 | H63: 0 | I63: 0 | J63: 0 | K63: 0 | L63: 0 | M63: 0 | N63: 0 | O63: 0
B64: Variance | C64: =+C62-C63 -> 10890.5 | D64: 10890.5 | E64: 10890.5 | F64: 10890.5 | G64: 10890.5 | H64: 10890.5 | I64: 10890.5 | J64: 10890.5 | K64: 10890.5 | L64: 10890.5 | M64: 10890.5 | N64: 10890.5 | O64: 130686
A66: 6256 - Landscape/Snow (Western Sun) | B66: Budget | C66: 11664 | D66: 11664 | E66: 11664 | F66: 5832 | G66: 5832 | H66: 5832 | I66: 5832 | J66: 5832 | K66: 5832 | L66: 5832 | M66: 5832 | N66: 11664 | O66: =SUM(C66:N66) -> 93312
B67: Actual | C67: 0 | D67: 0 | E67: 0 | F67: 0 | G67: 0 | H67: 0 | I67: 0 | J67: 0 | K67: 0 | L67: 0 | M67: 0 | N67: 0 | O67: 0
B68: Variance | C68: =+C66-C67 -> 11664 | D68: 11664 | E68: 11664 | F68: 5832 | G68: 5832 | H68: 5832 | I68: 5832 | J68: 5832 | K68: 5832 | L68: 5832 | M68: 5832 | N68: 11664 | O68: 93312
A70: 6257 and 6298 - Landscape additions/improvements/reimbursements/sprinkler tech | B70: Budget | C70: 0 | D70: 500 | E70: 10787 | F70: 2400 | G70: 2400 | H70: 1000 | I70: 1000 | J70: 1000 | K70: 1000 | L70: 1000 | M70: 1000 | N70: 0 | O70: =SUM(C70:N70) -> 22087
B71: Actual | C71: 0 | D71: 0 | E71: 0 | F71: 0 | G71: 0 | H71: 0 | I71: 0 | J71: 0 | K71: 0 | L71: 0 | M71: 0 | N71: 0 | O71: 0
B72: Variance | C72: =+C70-C71 -> 0 | D72: 500 | E72: 10787 | F72: 2400 | G72: 2400 | H72: 1000 | I72: 1000 | J72: 1000 | K72: 1000 | L72: 1000 | M72: 1000 | N72: 0 | O72: 22087
A74: 6259/7807 - Tax prep/Tax related | B74: Budget | C74: 0 | D74: 0 | E74: 300 | F74: 0 | G74: 300 | H74: 0 | I74: 0 | J74: 0 | K74: 0 | L74: 0 | M74: 0 | N74: 0 | O74: =SUM(C74:N74) -> 600
B75: Actual | C75: 0 | D75: 0 | E75: 0 | F75: 0 | G75: 0 | H75: 0 | I75: 0 | J75: 0 | K75: 0 | L75: 0 | M75: 0 | N75: 0 | O75: 0
B76: Variance | C76: =+C74-C75 -> 0 | D76: 0 | E76: 300 | F76: 0 | G76: 300 | H76: 0 | I76: 0 | J76: 0 | K76: 0 | L76: 0 | M76: 0 | N76: 0 | O76: 600
A78: 6260 - Maintenance Buildings-roof, painting, stucco | B78: Budget | C78: 200 | D78: 200 | E78: 1400 | F78: 500 | G78: 500 | H78: 500 | I78: 500 | J78: 500 | K78: 500 | L78: 500 | M78: 500 | N78: 200 | O78: =SUM(C78:N78) -> 6000
B79: Actual | C79: 0 | D79: 0 | E79: 0 | F79: 0 | G79: 0 | H79: 0 | I79: 0 | J79: 0 | K79: 0 | L79: 0 | M79: 0 | N79: 0 | O79: 0
B80: Variance | C80: =+C78-C79 -> 200 | D80: 200 | E80: 1400 | F80: 500 | G80: 500 | H80: 500 | I80: 500 | J80: 500 | K80: 500 | L80: 500 | M80: 500 | N80: 200 | O80: 6000
A82: 6261 - Maintenance Common area-courtyard lighting, fence,roads,ice control labor/supplies | B82: Budget | C82: 300 | D82: 500 | E82: 500 | F82: 500 | G82: 500 | H82: 1000 | I82: 1000 | J82: 1000 | K82: 500 | L82: 500 | M82: 300 | N82: 300 | O82: =SUM(C82:N82) -> 6900
B83: Actual | C83: 0 | D83: 0 | E83: 0 | F83: 0 | G83: 0 | H83: 0 | I83: 0 | J83: 0 | K83: 0 | L83: 0 | M83: 0 | N83: 0 | O83: 0
B84: Variance | C84: =+C82-C83 -> 300 | D84: 500 | E84: 500 | F84: 500 | G84: 500 | H84: 1000 | I84: 1000 | J84: 1000 | K84: 500 | L84: 500 | M84: 300 | N84: 300 | O84: 6900
A86: 6267 - Office supplies/ equipment,association voice, parking exp. newsletters/flag/gifting misc. | B86: Budget | C86: 0 | D86: 50 | E86: 50 | F86: 150 | G86: 100 | H86: 50 | I86: 150 | J86: 50 | K86: 100 | L86: 150 | M86: 50 | N86: 250 | O86: =SUM(C86:N86) -> 1150
B87: Actual | C87: 0 | D87: 0 | E87: 0 | F87: 0 | G87: 0 | H87: 0 | I87: 0 | J87: 0 | K87: 0 | L87: 0 | M87: 0 | N87: 0 | O87: 0
B88: Variance | C88: =+C86-C87 -> 0 | D88: 50 | E88: 50 | F88: 150 | G88: 100 | H88: 50 | I88: 150 | J88: 50 | K88: 100 | L88: 150 | M88: 50 | N88: 250 | O88: 1150
A90: 6270 - Pool operating labor - Daily | B90: Budget | C90: 0 | D90: 0 | E90: 0 | F90: 0 | G90: 1000 | H90: 1500 | I90: 1500 | J90: 1000 | K90: 1000 | L90: 1000 | M90: 0 | N90: 0 | O90: =SUM(C90:N90) -> 7000
B91: Actual | C91: 0 | D91: 0 | E91: 0 | F91: 0 | G91: 0 | H91: 0 | I91: 0 | J91: 0 | K91: 0 | L91: 0 | M91: 0 | N91: 0 | O91: 0
B92: Variance | C92: =+C90-C91 -> 0 | D92: 0 | E92: 0 | F92: 0 | G92: 1000 | H92: 1500 | I92: 1500 | J92: 1000 | K92: 1000 | L92: 1000 | M92: 0 | N92: 0 | O92: =+O90-O91 -> 7000
A94: 6271 - Pool-License/fees SLCounty Health Dept | B94: Budget | C94: 0 | D94: 0 | E94: 405 | F94: 0 | G94: 0 | H94: 0 | I94: 0 | J94: 0 | K94: 0 | L94: 0 | M94: 0 | N94: 0 | O94: =SUM(C94:N94) -> 405
B95: Actual | C95: 0 | D95: 0 | E95: 0 | F95: 0 | G95: 0 | H95: 0 | I95: 0 | J95: 0 | K95: 0 | L95: 0 | M95: 0 | N95: 0 | O95: 0
B96: Variance | C96: =+C94-C95 -> 0 | D96: 0 | E96: 405 | F96: 0 | G96: 0 | H96: 0 | I96: 0 | J96: 0 | K96: 0 | L96: 0 | M96: 0 | N96: 0 | O96: 405
A98: 6273 - Pool Misc exp. Furniture, improvements | B98: Budget | C98: 0 | D98: 0 | E98: 0 | F98: 0 | G98: 1500 | H98: 500 | I98: 0 | J98: 0 | K98: 0 | L98: 0 | M98: 0 | N98: 0 | O98: =SUM(C98:N98) -> 2000
B99: Actual | C99: 0 | D99: 0 | E99: 0 | F99: 0 | G99: 0 | H99: 0 | I99: 0 | J99: 0 | K99: 0 | L99: 0 | M99: 0 | N99: 0 | O99: 0
B100: Variance | C100: =+C98-C99 -> 0 | D100: 0 | E100: 0 | F100: 0 | G100: 1500 | H100: 500 | I100: 0 | J100: 0 | K100: 0 | L100: 0 | M100: 0 | N100: 0 | O100: 2000
A102: 6278 - Pool - Utilities/gas, equal billing (Dominon) | B102: Budget | C102: 110 | D102: 110 | E102: 110 | F102: 150 | G102: 150 | H102: 150 | I102: 150 | J102: 150 | K102: 150 | L102: 110 | M102: 110 | N102: 110 | O102: =SUM(C102:N102) -> 1560
B103: Actual | C103: 0 | D103: 0 | E103: 0 | F103: 0 | G103: 0 | H103: 0 | I103: 0 | J103: 0 | K103: 0 | L103: 0 | M103: 0 | N103: 0 | O103: 0
B104: Variance | C104: =+C102-C103 -> 110 | D104: 110 | E104: 110 | F104: 150 | G104: 150 | H104: 150 | I104: 150 | J104: 150 | K104: 150 | L104: 110 | M104: 110 | N104: 110 | O104: 1560
A106: 6279 - Pool Utilities-Sewer/Garbage | B106: Budget | C106: 25 | D106: 25 | E106: 25 | F106: 25 | G106: 25 | H106: 25 | I106: 25 | J106: 25 | K106: 25 | L106: 25 | M106: 25 | N106: 25 | O106: =SUM(C106:N106) -> 300
B107: Actual | C107: 0 | D107: 0 | E107: 0 | F107: 0 | G107: 0 | H107: 0 | I107: 0 | J107: 0 | K107: 0 | L107: 0 | M107: 0 | N107: 0 | O107: 0
B108: Variance | C108: =+C106-C107 -> 25 | D108: 25 | E108: 25 | F108: 25 | G108: 25 | H108: 25 | I108: 25 | J108: 25 | K108: 25 | L108: 25 | M108: 25 | N108: 25 | O108: 300
A110: 7652 - Welch Randall Mgmnt Fee | B110: Budget | C110: 1600 | D110: 1760 | E110: 1760 | F110: 1760 | G110: 1760 | H110: 1760 | I110: 1760 | J110: 1760 | K110: 1760 | L110: 1760 | M110: 1760 | N110: 1760 | O110: =SUM(C110:N110) -> 20960
B111: Actual | C111: 0 | D111: 0 | E111: 0 | F111: 0 | G111: 0 | H111: 0 | I111: 0 | J111: 0 | K111: 0 | L111: 0 | M111: 0 | N111: 0 | O111: 0
B112: Variance | C112: =+C110-C111 -> 1600 | D112: 1760 | E112: 1760 | F112: 1760 | G112: 1760 | H112: 1760 | I112: 1760 | J112: 1760 | K112: 1760 | L112: 1760 | M112: 1760 | N112: 1760 | O112: 20960
A114: 6286 - Dumpster | B114: Budget | C114: 0 | D114: 0 | E114: 0 | F114: 0 | G114: 1500 | H114: 0 | I114: 0 | J114: 0 | K114: 0 | L114: 0 | M114: 0 | N114: 0 | O114: =SUM(C114:N114) -> 1500
B115: Actual | C115: 0 | D115: 0 | E115: 0 | F115: 0 | G115: 0 | H115: 0 | I115: 0 | J115: 0 | K115: 0 | L115: 0 | M115: 0 | N115: 0 | O115: 0
B116: Variance | C116: =+C114-C115 -> 0 | D116: 0 | E116: 0 | F116: 0 | G116: 1500 | H116: 0 | I116: 0 | J116: 0 | K116: 0 | L116: 0 | M116: 0 | N116: 0 | O116: 1500
A118: Landscape extras/Affordable/ | B118: Budget | C118: 0 | D118: 0 | E118: 0 | F118: 0 | G118: 0 | H118: 0 | I118: 0 | J118: 0 | K118: 0 | L118: 0 | M118: 0 | N118: 0 | O118: =SUM(C118:N118) -> 0
B119: Actual | C119: 0 | D119: 0 | E119: 0 | F119: 0 | G119: 0 | H119: 0 | I119: 0 | J119: 0 | K119: 0 | L119: 0 | M119: 0 | N119: 0 | O119: 0
A120: 208 | B120: Variance | C120: =+C118-C119 -> 0 | D120: 0 | E120: 0 | F120: 0 | G120: 0 | H120: 0 | I120: 0 | J120: 0 | K120: 0 | L120: 0 | M120: 0 | N120: 0 | O120: 0
A122: Legal fees/expenses | B122: Budget | C122: 0 | D122: 0 | E122: 0 | F122: 0 | G122: 0 | H122: 0 | I122: 0 | J122: 0 | K122: 0 | L122: 0 | M122: 0 | N122: 0 | O122: =SUM(C122:N122) -> 0
B123: Actual | C123: 0 | D123: 0 | E123: 0 | F123: 0 | G123: 0 | H123: 0 | I123: 0 | J123: 0 | K123: 0 | L123: 0 | M123: 0 | N123: 0 | O123: 0
A124: 213 | B124: Variance | C124: =+C122-C123 -> 0 | D124: 0 | E124: 0 | F124: 0 | G124: 0 | H124: 0 | I124: 0 | J124: 0 | K124: 0 | L124: 0 | M124: 0 | N124: 0 | O124: 0
A126: Pool - Equipment repairs, parts & labor | B126: Budget | C126: 0 | D126: 0 | E126: 0 | F126: 0 | G126: 200 | H126: 200 | I126: 0 | J126: 0 | K126: 200 | L126: 200 | M126: 0 | N126: 0 | O126: =SUM(C126:N126) -> 800
A127: pumps,cover etc. | B127: Actual | C127: 0 | D127: 0 | E127: 0 | F127: 0 | G127: 0 | H127: 0 | I127: 0 | J127: 0 | K127: 0 | L127: 0 | M127: 0 | N127: 0 | O127: 0
A128: 215 | B128: Variance | C128: =+C126-C127 -> 0 | D128: 0 | E128: 0 | F128: 0 | G128: 200 | H128: 200 | I128: 0 | J128: 0 | K128: 200 | L128: 200 | M128: 0 | N128: 0 | O128: 800
A131: 6268 - Pool chemicals, cleaning supplies | B131: Budget | C131: 0 | D131: 0 | E131: 0 | F131: 100 | G131: 200 | H131: 200 | I131: 200 | J131: 100 | K131: 100 | L131: 0 | M131: 0 | N131: 0 | O131: =SUM(C131:N131) -> 900
B132: Actual | C132: 0 | D132: 0 | E132: 0 | F132: 0 | G132: 0 | H132: 0 | I132: 0 | J132: 0 | K132: 0 | L132: 0 | M132: 0 | N132: 0 | O132: 0
B133: Variance | C133: =+C131-C132 -> 0 | D133: 0 | E133: 0 | F133: 100 | G133: 200 | H133: 200 | I133: 200 | J133: 100 | K133: 100 | L133: 0 | M133: 0 | N133: 0 | O133: 900
A135: 6287 - Utilities-Rocky Mtn. Power | B135: Budget | C135: 1000 | D135: 1000 | E135: 900 | F135: 850 | G135: 850 | H135: 850 | I135: 850 | J135: 800 | K135: 800 | L135: 800 | M135: 800 | N135: 800 | O135: =SUM(C135:N135) -> 10300
B136: Actual | C136: 0 | D136: 0 | E136: 0 | F136: 0 | G136: 0 | H136: 0 | I136: 0 | J136: 0 | K136: 0 | L136: 0 | M136: 0 | N136: 0 | O136: 0
B137: Variance | C137: =+C135-C136 -> 1000 | D137: 1000 | E137: 900 | F137: 850 | G137: 850 | H137: 850 | I137: 850 | J137: 800 | K137: 800 | L137: 800 | M137: 800 | N137: 800 | O137: 10300
A139: 6289 - 1624 WG Landscape | B139: Budget | C139: 65 | D139: 65 | E139: 65 | F139: 65 | G139: 65 | H139: 800 | I139: 800 | J139: 800 | K139: 800 | L139: 800 | M139: 500 | N139: 65 | O139: =SUM(C139:N139) -> 4890
B140: Actual | C140: 0 | D140: 0 | E140: 0 | F140: 0 | G140: 0 | H140: 0 | I140: 0 | J140: 0 | K140: 0 | L140: 0 | M140: 0 | N140: 0 | O140: 0
B141: Variance | C141: =+C139-C140 -> 65 | D141: 65 | E141: 65 | F141: 65 | G141: 65 | H141: 800 | I141: 800 | J141: 800 | K141: 800 | L141: 800 | M141: 500 | N141: 65 | O141: 4890
A143: 6290 - Utilities-SJ water #256213, 10791 WPD-#2 pool house | B143: Budget | C143: 400 | D143: 900 | E143: 900 | F143: 900 | G143: 900 | H143: 1000 | I143: 1000 | J143: 1000 | K143: 1000 | L143: 900 | M143: 250 | N143: 200 | O143: =SUM(C143:N143) -> 9350
B144: Actual | C144: 0 | D144: 0 | E144: 0 | F144: 0 | G144: 0 | H144: 0 | I144: 0 | J144: 0 | K144: 0 | L144: 0 | M144: 0 | N144: 0 | O144: 0
B145: Variance | C145: =+C143-C144 -> 400 | D145: 900 | E145: 900 | F145: 900 | G145: 900 | H145: 1000 | I145: 1000 | J145: 1000 | K145: 1000 | L145: 900 | M145: 250 | N145: 200 | O145: 9350
A147: 6291 - Utilities-SJ water #-1625 10824 S | B147: Budget | C147: 37 | D147: 37 | E147: 37 | F147: 37 | G147: 37 | H147: 85 | I147: 550 | J147: 500 | K147: 700 | L147: 700 | M147: 500 | N147: 200 | O147: =SUM(C147:N147) -> 3420
B148: Actual | C148: 0 | D148: 0 | E148: 0 | F148: 0 | G148: 0 | H148: 0 | I148: 0 | J148: 0 | K148: 0 | L148: 0 | M148: 0 | N148: 0 | O148: 0
B149: Variance | C149: =+C147-C148 -> 37 | D149: 37 | E149: 37 | F149: 37 | G149: 37 | H149: 85 | I149: 550 | J149: 500 | K149: 700 | L149: 700 | M149: 500 | N149: 200 | O149: 3420
A151: 6292 - Utilities-SJ water #1539 w | B151: Budget | C151: 33.5 | D151: 33.5 | E151: 33.5 | F151: 33.5 | G151: 33.5 | H151: 37.5 | I151: 500 | J151: 1000 | K151: 1400 | L151: 1000 | M151: 750 | N151: 300 | O151: =SUM(C151:N151) -> 5155
B152: Actual | C152: 0 | D152: 0 | E152: 0 | F152: 0 | G152: 0 | H152: 0 | I152: 0 | J152: 0 | K152: 0 | L152: 0 | M152: 0 | N152: 0 | O152: 0
B153: Variance | C153: =+C151-C152 -> 33.5 | D153: 33.5 | E153: 33.5 | F153: 33.5 | G153: 33.5 | H153: 37.5 | I153: 500 | J153: 1000 | K153: 1400 | L153: 1000 | M153: 750 | N153: 300 | O153: 5155
A155: 6293 - Utilities-SJ water #1561 w | B155: Budget | C155: 37 | D155: 37 | E155: 37 | F155: 37 | G155: 37 | H155: 200 | I155: 850 | J155: 1250 | K155: 1500 | L155: 800 | M155: 700 | N155: 100 | O155: =SUM(C155:N155) -> 5585
B156: Actual | C156: 0 | D156: 0 | E156: 0 | F156: 0 | G156: 0 | H156: 0 | I156: 0 | J156: 0 | K156: 0 | L156: 0 | M156: 0 | N156: 0 | O156: 0
B157: Variance | C157: =+C155-C156 -> 37 | D157: 37 | E157: 37 | F157: 37 | G157: 37 | H157: 200 | I157: 850 | J157: 1250 | K157: 1500 | L157: 800 | M157: 700 | N157: 100 | O157: 5585
A159: 6294 - Utilities SJ water-#1595 WVL | B159: Budget | C159: 33.5 | D159: 33.5 | E159: 33.5 | F159: 33.5 | G159: 33.5 | H159: 33.5 | I159: 33.5 | J159: 33.5 | K159: 33.5 | L159: 33.5 | M159: 33.5 | N159: 33.5 | O159: =SUM(C159:N159) -> 402
B160: Actual | C160: 0 | D160: 0 | E160: 0 | F160: 0 | G160: 0 | H160: 0 | I160: 0 | J160: 0 | K160: 0 | L160: 0 | M160: 0 | N160: 0 | O160: 0
B161: Variance | C161: =+C159-C160 -> 33.5 | D161: 33.5 | E161: 33.5 | F161: 33.5 | G161: 33.5 | H161: 33.5 | I161: 33.5 | J161: 33.5 | K161: 33.5 | L161: 33.5 | M161: 33.5 | N161: 33.5 | O161: 402
A163: 6295 - Utilities-SJ water #256215, 1624 WPD Landscape | B163: Budget | C163: 37 | D163: 37 | E163: 37 | F163: 37 | G163: 37 | H163: 37 | I163: 900 | J163: 1500 | K163: 1700 | L163: 800 | M163: 700 | N163: 37 | O163: =SUM(C163:N163) -> 5859
B164: Actual | C164: 0 | D164: 0 | E164: 0 | F164: 0 | G164: 0 | H164: 0 | I164: 0 | J164: 0 | K164: 0 | L164: 0 | M164: 0 | N164: 0 | O164: 0
B165: Variance | C165: =+C163-C164 -> 37 | D165: 37 | E165: 37 | F165: 37 | G165: 37 | H165: 37 | I165: 900 | J165: 1500 | K165: 1700 | L165: 800 | M165: 700 | N165: 37 | O165: 5859
A168: Total Budget | C168: =C54+C110+C58+C62+C114+C66+C118+C70+C78+C82+C86+C122+C74+C126+C94+C90+C131+C98+C102+C106+C135+C147+C151+C155+C159+C139+C163+C143 -> 30388.25 | D168: 31798.25 | E168: 43890.25 | F168: 28256.25 | G168: 32806.25 | H168: 30606.25 | I168: 32446.75 | J168: 33146.75 | K168: 33946.75 | L168: 31756.75 | M168: 28656.75 | N168: 30890.75 | O168: 388590
A169: Total Actual | C169: =C111+C59+C63+C115+C67+C71+C79+C83+C87+C123+C75+C127+C95+C91+C132+C99+C103+C107+C136+C148+C152+C156+C160+C140+C144+C119+C164+C55 -> 0 | D169: 0 | E169: 0 | F169: 0 | G169: 0 | H169: 0 | I169: 0 | J169: 0 | K169: 0 | L169: 0 | M169: 0 | N169: 0 | O169: =O51+O55+O111+O59+O63+O115+O67+O71+O79+O83+O87+O123+O75+O127+O95+O91+O132+O99+O103+O107+O136+O148+O152+O156+O160+O140+O164+O144+O119 -> 0
A170: Total Variance | C170: =+C168-C169 -> 30388.25 | D170: 31798.25 | E170: 43890.25 | F170: 28256.25 | G170: 32806.25 | H170: 30606.25 | I170: 32446.75 | J170: 33146.75 | K170: 33946.75 | L170: 31756.75 | M170: 28656.75 | N170: 30890.75 | O170: 388590
A173: Budget Variance
A174: Income | C174: =C43 -> 32382.5 | D174: 32382.5 | E174: 32382.5 | F174: 32382.5 | G174: 32382.5 | H174: 32382.5 | I174: 32382.5 | J174: 32382.5 | K174: 32382.5 | L174: 32382.5 | M174: 32382.5 | N174: 32382.5 | O174: =SUM(C174:N174) -> 388590
A175: Expenses | C175: =C169 -> 0 | D175: 0 | E175: 0 | F175: 0 | G175: 0 | H175: 0 | I175: 0 | J175: 0 | K175: 0 | L175: 0 | M175: 0 | N175: 0 | O175: 0
A176: Variance | C176: =C174-C175 -> 32382.5 | D176: 32382.5 | E176: 32382.5 | F176: 32382.5 | G176: 32382.5 | H176: 32382.5 | I176: 32382.5 | J176: 32382.5 | K176: 32382.5 | L176: 32382.5 | M176: 32382.5 | N176: 32382.5 | O176: 388590
M177: Total actual income | O177: =O44 -> 0
M178: Total actual expenses | O178: =O169 -> 0
O179: =O177-O178 -> 0
M180: x-fer from reserves | O180: 0
L182: Balance of operating carry over

Sheet Reserve Expenses
A1: Expenses
C2: Jan. | D2: Feb. | E2: March | F2: April | G2: May | H2: June | I2: July | J2: Aug | K2: Sept. | L2: Oct. | M2: Nov. | N2: Dec. | O2: Total
A3: Income Journal Entry | B3: Budget | C3: 19200 | D3: 19200 | E3: 19200 | F3: 19200 | G3: 19200 | H3: 19200 | I3: 19200 | J3: 19200 | K3: 19200 | L3: 19200 | M3: 19200 | N3: 19200 | O3: =SUM(C3:N3) -> 230400
A4: from fees (1156) | B4: Actual | O4: 0
B5: Variance | C5: =+C3-C4 -> 19200 | D5: 19200 | E5: 19200 | F5: 19200 | G5: 19200 | H5: 19200 | I5: 19200 | J5: 19200 | K5: 19200 | L5: 19200 | M5: 19200 | N5: 19200 | O5: 230400
A7: Reserve Expenses | B7: Budget | C7: 0 | D7: 0 | E7: 0 | F7: 0 | G7: 0 | H7: 0 | I7: 0 | J7: 0 | K7: 0 | L7: 0 | M7: 0 | N7: 0 | O7: =SUM(C7:N7) -> 0
B8: Actual | O8: 0
B9: Variance | C9: =+C7-C8 -> 0 | D9: 0 | E9: 0 | F9: 0 | G9: 0 | H9: 0 | I9: 0 | J9: 0 | K9: 0 | L9: 0 | M9: 0 | N9: 0 | O9: 0
A11: Interest on Bank Accounts | B11: Budget | C11: 36 | D11: 36 | E11: 36 | F11: 36 | G11: 36 | H11: 36 | I11: 36 | J11: 36 | K11: 36 | L11: 36 | M11: 36 | N11: 36 | O11: =SUM(C11:N11) -> 432
A12: Interest income | B12: Actual | O12: 0
B13: Variance | C13: =+C11-C12 -> 36 | D13: 36 | E13: 36 | F13: 36 | G13: 36 | H13: 36 | I13: 36 | J13: 36 | K13: 36 | L13: 36 | M13: 36 | N13: 36 | O13: 432
